Cogmind - Beta 17.1 @@@ ROGUE MODE // 2026.08.30 @ 23:38:11 Player: shapeshifter Result: Destroyed by S-43 Plague with Heavy Machine Gun Performance ------------- Evolutions (9) 4500 Regions Visited (15) 3000 Robots Destroyed (308) 1540 Value Destroyed (18843) 18843 Prototype IDs (134) 2680 Alien Tech Used (7) 1400 Bonus (63021) 63021 TOTAL SCORE: 94984 Bonus ------- Triggered High Security 2500 High Alert Combat Kills 14382 Follower Combat Kills 6440 Prayed to X0-1V1 5000 Major X0-1V1 Interference 16300 Entered DSFs 500 Delivered SUBCON Basin 2000 Registered with UFD 300 Used Core Reset Matrix 3000 Scanned by Researcher 1000 Pursued by Intercept 500 Met Sigix 2000 Met MAIN.C 5000 Destroyed MAIN.C Shell 5000 Friendly Fire -901 Cogmind --------- Core Integrity 0/1700 Matter 78/300 Energy 55/600 System Corruption 0% +Membrane Temperature Cool (0) Movement Core (50) Location -1/Command Parts ------- > --- POWER (4) -------- (None) > --- PROPULSION (7) --- (None) > --- UTILITY (12) ----- Enhanced Optical Array Graphene Brace > --- WEAPON (3) ------- (None) > --- INVENTORY (6) ---- Microwarp Drive Improved Potential Cannon Peak State ------------ > --- POWER ------------ Improved Quantum Reactor Singularity Reactor > --- PROPULSION ------- High-density Centrium Leg High-density Centrium Leg Experimental Biometal Leg Experimental Armored Exoskeleton > --- UTILITY ---------- Experimental Cooling System High-capacity Storage Unit Enhanced Optical Array Wyrmscale Wyrmscale Graphene Brace Plateshifter AEGIS Remote Shield Microwarp Drive > --- WEAPON ----------- Perforator Advanced Remote Datajack > --- INVENTORY -------- Experimental Armored Exoskeleton Experimental Cooling System Experimental Energy Well Advanced Particle Accelerator Experimental Weapon Cycler Wyrmscale Transdimensional Reconstructor Core Regenerator Integrity Redistributor Integrity Redistributor Subatomic Replicator YOLO Cannon Improved Potential Cannon Omega Cannon H3-MLN's Flail [Rating: 284] Favorites ----------- Power Subdweller Power Source Engine Subdweller Power Source Reactor Singularity Reactor Propulsion High-density Centrium Leg Treads Improved Treads Leg High-density Centrium Leg Wheel Subdweller Monowheel Flight Unit Xenon Bombardment Thruster Utility Large Storage Unit Device Experimental Cooling System Storage Large Storage Unit Processor Enhanced Optical Array Hackware Improved Hacking Suite Protection Wyrmscale Artifact Microwarp Drive Weapon Subdweller Beam Cannon Energy Gun Medium Laser Energy Cannon Subdweller Beam Cannon Ballistic Gun Battle Rifle Ballistic Cannon Light Cannon Launcher Mini Grenade Launcher Special Weapon Advanced Remote Datajack Impact Weapon H3-MLN's Flail Slashing Weapon Katana Piercing Weapon Lance Build | -11 -10 -10 -10 -7 -7 -5 -4 -4 -3 -3 -2 -2 -2 -1 -1 ------- Run | Yrd Mat Min Sub Rec Scr Fac Fac DSF Res Tes Res Qua Sec Acc Com Slots Evolved 18 | . . . . . . 10 2 . 2 . 2 . . 2 . Power 2 | . . . . . . 1 . . 1 . . . . . . Propulsion 5 | . . . . . . 3 1 . . . . . . 1 . Utility 10 | . . . . . . 6 1 . . . 2 . . 1 . Weapon 1 | . . . . . . . . . 1 . . . . . . Parts Attached 159 | 7 7 3 39 4 13 5 3 8 11 18 4 5 19 5 8 Power 18 | 1 1 . 5 1 1 1 . . 2 1 . . 4 . 1 Engine 10 | 1 1 . 5 1 1 1 . . . . . . . . . Core . | . . . . . . . . . . . . . . . . Reactor 8 | . . . . . . . . . 2 1 . . 4 . 1 Propulsion 44 | 2 2 1 7 2 7 2 . 3 2 5 1 2 4 1 3 Treads 10 | 2 2 1 3 . 1 . . 1 . . . . . . . Leg 25 | . . . . . 5 2 . 2 2 5 1 2 4 1 1 Wheel 7 | . . . 4 2 1 . . . . . . . . . . Hover . | . . . . . . . . . . . . . . . . Flight 2 | . . . . . . . . . . . . . . . 2 Utility 53 | 2 4 . 10 . 2 2 2 1 5 7 2 1 9 3 3 Device 19 | 1 1 . 2 . . . 2 1 2 4 1 . 4 . 1 Storage 8 | 1 2 . 1 . 1 . . . . 1 . . 1 . 1 Processor 8 | . . . . . . 2 . . 3 . 1 1 1 . . Hackware 1 | . . . . . . . . . . . . . . . 1 Protection 16 | . 1 . 7 . 1 . . . . 2 . . 3 2 . Artifact 1 | . . . . . . . . . . . . . . 1 . Weapon 44 | 2 . 2 17 1 3 . 1 4 2 5 1 2 2 1 1 Energy Gun 6 | 1 . . 3 . . . . 2 . . . . . . . Energy Cannon 12 | . . . 2 1 . . 1 2 2 2 . . 1 . 1 Ballistic Gun 12 | 1 . 1 8 . . . . . . 1 . . 1 . . Ballistic Cannon 7 | . . 1 2 . 2 . . . . . . 2 . . . Launcher 1 | . . . 1 . . . . . . . . . . . . Special Weapon 5 | . . . . . 1 . . . . 2 1 . . 1 . Impact Weapon 1 | . . . 1 . . . . . . . . . . . . Slashing Weapon . | . . . . . . . . . . . . . . . . Piercing Weapon . | . . . . . . . . . . . . . . . . Special Melee Weapon . | . . . . . . . . . . . . . . . . Unidentified Prototypes 2 | . 1 . . . . . . . . . . 1 . . . Corrupted Parts 5 | . . . 1 . . . . . . 4 . . . . . System Corruption 38 | . . . 10 . . . . . . 28 . . . . . Parts Lost 41 | . . . 13 2 . 3 . 1 . . . . 4 . 18 Power 5 | . . . 2 . . . . . . . . . . . 3 Propulsion 12 | . . . 2 1 . 1 . 1 . . . . 2 . 5 Utility 14 | . . . 5 . . 1 . . . . . . 1 . 7 Weapon 10 | . . . 4 1 . 1 . . . . . . 1 . 3 Highest Loss Streak 14 | . . . 3 1 . 2 . 1 . . . . 2 . 14 To Critical Strikes 2 | . . . 1 . . 1 . . . . . . . . . Average Backups 12 | 1 8 14 12 14 12 6 6 10 10 13 13 12 12 14 11 Power . | . . . . . . . . . . 1 1 1 . . . Propulsion 2 | . 4 5 3 4 1 . . 2 4 1 1 2 1 1 . Utility 4 | . . 3 3 4 7 5 5 4 3 6 6 4 3 4 3 Weapon 3 | 1 2 6 5 3 1 . . 1 . 2 3 2 3 3 2 Tool/Special . | . . . . . . . . . . . . . . . . Unused Backups 86 | . 5 . 16 7 25 . . 8 2 10 . 5 6 1 1 Power 5 | . 2 . . . 2 . . . . 1 . . . . . Propulsion 12 | . . . 2 . 3 . . 3 1 3 . . . . . Utility 40 | . . . 6 5 13 . . 3 . 5 . 5 2 1 . Weapon 26 | . 3 . 8 2 7 . . 2 1 1 . . 2 . . Tool/Special 3 | . . . . . . . . . . . . . 2 . 1 Average Slot Usage (%) 80 | . 99 92 90 85 69 59 48 66 79 89 86 83 69 64 63 Engine 10 | . 14 10 13 25 15 9 8 9 6 . . . . . . Reactor 2 | . . . . . . . . . 2 9 8 8 7 7 5 Treads 5 | . 28 19 13 . . . . 3 2 . . . . . . Leg 10 | . . . . . 16 17 12 15 20 27 25 20 16 15 13 Wheel 4 | . . . 4 24 8 4 4 1 . . . . . . . Device 7 | . 8 . 4 . . . 4 11 17 17 15 16 17 15 19 Storage 9 | . 14 12 11 12 12 4 4 4 4 4 4 4 3 3 3 Processor 3 | . . . . . . 9 8 9 10 14 15 16 12 3 3 Protection 6 | . 5 12 9 . 7 4 . . . 2 8 8 4 6 6 Energy Gun 1 | . 14 5 2 . . . . 4 . . . . . . . Energy Cannon 4 | . . . 8 11 . . 2 5 12 7 4 3 2 1 2 Ballistic Gun 6 | . 14 18 15 11 . . . . . 2 3 4 . . . Ballistic Cannon 3 | . . 9 6 . 5 4 . . . . . . . 1 . Peak Build Rating 284 | 7 21 14 39 41 32 59 67 110 173 208 222 226 249 284 281 Average Rating 87 | 5 9 11 21 39 23 56 60 92 134 188 221 222 228 281 241 On Entrance 106 | . 7 11 14 39 19 29 49 67 110 173 208 221 223 249 281 Avg Prop Armor Cover (%) 5 | . . . 3 3 5 1 2 9 12 . . . . . 36 Naked Turns . | . . . . . . . . . . . . . . . . Heaviest Build 220 | 15 38 42 218 220 210 46 50 60 125 166 165 165 213 194 191 Greatest Support 192 | 40 46 40 66 36 37 76 60 90 148 182 182 182 184 192 192 Greatest Overweight (x) 13 | . . 2 10 10 13 . . 1 . . . 1 1 1 2 Average Overweight (x) 1 | . . . 2 6 1 . . . . . . . . . . Largest Inventory Capacity 36 | 8 16 16 36 36 36 16 16 16 16 21 21 21 26 26 21 Average Capacity 20 | 7 9 16 19 36 22 16 16 16 16 18 21 21 21 21 20 Most Carried 36 | 5 15 16 34 36 23 12 9 16 16 21 21 21 26 25 21 Average Carried 17 | 2 8 14 15 34 15 7 7 13 15 18 20 20 21 20 19 Final Capacity 36 | 8 16 16 36 36 16 16 16 16 16 21 21 21 26 21 21 Final Carried 34 | 2 15 16 34 22 13 7 8 16 16 21 21 21 26 21 17 Class Distribution -------------------- 21% | Mutant 19% | Tank 17% | Hauler-Mutant 11% | Generator-Tank 9% | Generator-Mutant 6% | Derelict-Mutant 4% | Scavenger-Tank 3% | Scavenger-Mutant Dominant Class ---------------- Mutant | -10/Materials Tank | -10/Mines Tank | -10/Subcaves Hauler-Mutant | -7/Recycling Mutant | -7/Scraptown Derelict-Mutant | -5/Factory Mutant | -4/Factory Mutant | -4/DSF Tank | -3/Research Generator-Tank | -3/Testing Scavenger-Tank | -2/Research Generator-Tank | -2/Quarantine Generator-Mutant | -2/Section 7 Generator-Tank | -1/Access Scavenger-Mutant | -1/Command Resources | -11 -10 -10 -10 -7 -7 -5 -4 -4 -3 -3 -2 -2 -2 -1 -1 ----------- Run | Yrd Mat Min Sub Rec Scr Fac Fac DSF Res Tes Res Qua Sec Acc Com Matter Collected 9707 | 222 183 102 2431 534 492 785 50 115 . 804 156 280 2616 350 587 Remotely . | . . . . . . . . . . . . . . . . Salvage Created 13827 | 10 271 98 1752 378 . 54 . 73 39 1187 246 874 5583 1676 1586 Parts 572 | 3 21 7 132 15 . 1 . 2 . 56 8 21 179 77 50 Haulers Intercepted 3 | . 2 . . . . . . . . . . . 1 . . Recyclers Shooed 3 | . . . . 1 . . . . . . 1 . . . 1 Parts Field Recycled . | . . . . . . . . . . . . . . . . Retrieved Matter . | . . . . . . . . . . . . . . . . Parts Self-Destructed 104 | . . . 104 . . . . . . . . . . . . Prevented 3 | . . . 3 . . . . . . . . . . . . Parts Restored . | . . . . . . . . . . . . . . . . Kills | -11 -10 -10 -10 -7 -7 -5 -4 -4 -3 -3 -2 -2 -2 -1 -1 ------- Run | Yrd Mat Min Sub Rec Scr Fac Fac DSF Res Tes Res Qua Sec Acc Com Combat Hostiles Destroyed 260 | . 2 2 63 4 . 1 . 1 . 11 3 11 107 32 23 Guns 39 | . 2 1 29 2 . . . 1 . 4 . . . . . Cannons 104 | . . 1 27 1 . 1 . . . 5 . 7 38 14 10 AOE 95 | . . . 7 . . . . . . 1 1 3 54 18 11 Classes Destroyed 29 | 1 5 1 3 1 . . . . . 4 1 3 7 2 1 Worker 12 | . 1 . . . . . . . . . . 1 . 4 6 Builder 3 | . . . . . . . . . . . . . . 3 . Tunneler 3 | 1 1 . . . . . . . . . 1 . . . . Hauler 3 | . 2 . . . . . . . . . . . 1 . . Recycler 6 | . . . . 2 . . . . . 2 . . . . 2 Mechanic 2 | . . . . . . . . . . . . . 2 . . Operator 7 | . 1 . . . . . . . 1 . 1 1 2 . 1 Watcher 7 | . 1 . . . . . . . . 1 1 . 2 1 1 Swarmer 48 | . . . 29 . . . . . . . . . 2 5 12 Saboteur 3 | . . . . . . . . . . . . . 3 . . Grunt 93 | . 2 . 19 2 . 1 . 1 . 6 2 6 48 6 . Brawler 2 | . . . . . . . . . . . 1 . 1 . . Duelist 7 | . . . . . . . . . . 1 . . 4 1 1 Protector 9 | . . . . . . . . . . . . 1 8 . . Researcher 4 | . . . . . . . . . . 3 . 1 . . . Sentry 18 | . . 2 1 2 . . . . . . . 1 12 . . Specialist 2 | . . . . . . . . . . . . . 2 . . Hunter 24 | . . . . . . . . . . . . 1 10 9 4 Programmer 17 | . . . . . . . . . . 3 . . 6 6 2 Heavy 1 | . . . . . . . . . . . . . 1 . . Q-Series 1 | . . . . . . . . . . . . . . 1 . Behemoth 1 | . . . . . . . . . . . . . 1 . . M Guard 1 | . . . . . . . . . . . . . . . 1 Lightning 2 | . . . . . . . . . . . . 2 . . . Tracker 2 | . . . . . . . . . . . . . . 2 . Combat Programmer 4 | . . . . . . . . . . . . . . 2 2 Investigator 2 | . . . . . . . . . . . . . 2 . . Striker 4 | . . . . . . . . . . . . . 4 . . Executioner 4 | . . . . . . . . . . . . . 4 . . Alpha 7 2 | . . . . . . . . . . 1 . . 1 . . Fortress 1 | . . . . . . . . . . . . 1 . . . Subdweller 12 | . . . 12 . . . . . . . . . . . . Botcube 2 | . . . 2 . . . . . . . . . . . . Assembled 3 | . . . . . . . . . . . . . . . 3 Best Kill Streak 26 | 1 2 2 4 3 . 1 . 1 1 3 3 6 26 17 7 Combat Bots Only 25 | . 2 2 4 2 . 1 . 1 . 2 3 3 25 16 6 Max Kills in Single Turn 7 | 1 1 1 3 1 . 1 . 1 1 1 1 2 7 3 2 Gunslinging 1 | . . . 1 . . . . . . . . . . . . Exploded 6 | . . . 3 . . . . . . 1 1 1 6 2 2 Melee . | . . . . . . . . . . . . . . . . Uniques/NPCs Destroyed 2 | . . . . . 1 . . . . . . . . . 1 Triborg (-7/Scraptown) MAIN.C Shell (-1/Command) Combat | -11 -10 -10 -10 -7 -7 -5 -4 -4 -3 -3 -2 -2 -2 -1 -1 -------- Run | Yrd Mat Min Sub Rec Scr Fac Fac DSF Res Tes Res Qua Sec Acc Com Hostile Shots Fired 2259 | . 10 43 403 71 21 21 . 46 . 39 32 18 446 377 732 Missed 694 | . 4 11 116 22 6 8 . 26 . 9 9 4 152 113 214 Deflected 1 | . . . . . . . . . . . . . 1 . . Hits 1565 | . 6 32 287 49 15 13 . 20 . 30 23 14 294 264 518 Melee 22 | . . . . . . . . . . 2 . . 3 . 17 Projectile 1543 | . 6 32 287 49 15 13 . 20 . 28 23 14 291 264 501 AOE 9 | . . . 4 . . . . 1 . . . . 3 . 1 Critical Strikes 87 | . 1 . 2 1 3 2 . 1 . 2 2 . 25 9 39 Actively Blocked 75 | . . . . . . . . . . . 2 . 25 9 39 Part Disruptions 11 | . . . . . . . . . . . . . 1 1 9 Damage Taken 29440 | . 90 261 3608 420 469 403 . 459 . 533 263 233 4630 4103 13968 Core 3583 | . . 48 548 97 27 45 . 113 . 50 50 . 152 853 1600 Absorbed by Shields 10383 | . . . . . . . . . . 482 248 228 3817 2521 3087 Redirected to Shielding 84 | . . . . . . . . . . . 9 49 26 . . Ignored by Resistances 53 | . . . 33 . . 20 . . . . . . . . . Regen/Repaired (Parts) 9838 | . . . . . . . . . . . . . 2887 1461 5490 Core Remaining (%) 91 | 100 . . . . 95 95 . 90 . 96 . . 72 . . Volleys Fired 666 | 1 19 7 191 24 5 16 . 8 3 69 26 31 135 54 77 Largest 5 | 2 2 3 5 2 1 1 . 3 3 3 1 1 1 1 1 Hottest 301 | 70 70 100 221 105 37 37 . 264 282 301 200 200 200 200 200 Shots Fired 1081 | 2 38 19 501 48 5 16 . 16 5 108 26 31 135 54 77 Gun 434 | 2 38 12 290 24 . . . 8 . 33 12 6 9 . . Cannon 633 | . . 7 206 24 4 16 . 8 5 69 13 25 126 54 76 Launcher 5 | . . . 5 . . . . . . . . . . . . Special 9 | . . . . . 1 . . . . 6 1 . . . 1 Kinetic 539 | 1 19 14 320 24 4 16 . . . 33 12 9 40 13 34 Thermal 481 | 1 19 5 146 24 . . . 8 2 63 13 22 95 41 42 Explosive 5 | . . . 5 . . . . . . . . . . . . Electromagnetic 47 | . . . 30 . . . . 8 3 6 . . . . . Robot Hit Streak 21 | 1 4 6 21 10 11 5 . 12 2 9 6 11 11 4 6 Robot Miss Streak 13 | 1 2 3 7 1 . 2 . 2 1 3 2 2 11 13 7 Penetration Max 2 | . . . . . . . . . . 2 1 . 1 2 1 Secondary Targets 5 | . 1 . 4 . . . . . . . . . . . . Max Gunslinging Chain 2 | . 1 . 2 . . . . . . . . . . . . Shots Hit Robots 624 | 1 23 11 251 29 3 10 . 13 2 60 17 22 100 30 52 Core Hits 506 | 1 14 5 100 10 . 2 . 3 1 42 17 22 182 52 55 Critical Kills 48 | . . . 1 1 . . . . . 2 2 1 26 9 6 Critical Parts Destroyed 43 | . . . 1 . . . . . . 1 . . 26 10 5 Critical Strikes 110 | . 1 1 3 1 . 1 . . . 3 2 1 62 19 16 Burn 2 | . 1 1 . . . . . . . . . . . . . Meltdown 19 | . . . 1 1 . . . . . 2 2 1 11 . 1 Destroy 86 | . . . 1 . . . . . . 1 . . 51 19 14 Blast 3 | . . . 1 . . 1 . . . . . . . . 1 Melee Attacks 7 | . . . . . 3 . . . . 2 1 . 1 . . Impact . | . . . . . . . . . . . . . . . . Slashing 1 | . . . . . 1 . . . . . . . . . . Piercing . | . . . . . . . . . . . . . . . . Sneak Attacks 4 | . . . . . 2 . . . . . 1 . 1 . . Combat Hostiles . | . . . . . . . . . . . . . . . . Follow-up Attacks . | . . . . . . . . . . . . . . . . Damage Inflicted 66826 | 13 296 217 5539 618 . 313 . 385 106 2716 1425 4525 30411 9310 10952 Guns 5159 | 13 293 115 2520 241 . . . 131 . 985 457 137 267 . . Cannons 29479 | . . 102 2498 377 . 313 . 254 106 1631 404 2330 11349 3711 6404 Explosions 32052 | . . . 521 . . . . . . 100 564 2058 18688 5573 4548 Melee . | . . . . . . . . . . . . . . . . Ramming 136 | . 3 . . . . . . . . . . . 107 26 . Kinetic 8176 | 13 130 180 2620 241 . 313 . . . 985 457 137 637 122 2341 Thermal 56724 | . 163 37 2077 377 . . . 131 . 1492 968 4213 29625 9030 8611 Explosive 870 | . . . 521 . . . . . . . . 175 42 132 . Electromagnetic 920 | . . . 321 . . . . 254 106 239 . . . . . Impact . | . . . . . . . . . . . . . . . . Slashing . | . . . . . . . . . . . . . . . . Piercing . | . . . . . . . . . . . . . . . . Highest Corruption 38 | . . . 38 . . 17 . . . 21 . 2 7 . . Average Corruption 8 | . . . 9 . . 17 . . . 10 . 1 5 . . Corruption Purged . | . . . . . . . . . . . . . . . . Corruption Blocked . | . . . . . . . . . . . . . . . . Effects 113 | . . . 84 . . 1 . . . 11 . 2 15 . . Message Errors 28 | . . . 23 . . 1 . . . 1 . 1 2 . . Matter Fused 24 | . . . 19 . . . . . . . . 1 4 . . Heat Flow Errors 15 | . . . 9 . . . . . . 2 . . 4 . . Energy Discharges 17 | . . . 13 . . . . . . 3 . . 1 . . Data Loss (minor) 19 | . . . 13 . . . . . . 3 . . 3 . . Data Loss (major) 4 | . . . 1 . . . . . . 2 . . 1 . . Misfires 2 | . . . 2 . . . . . . . . . . . . Alerts 3 | . . . 3 . . . . . . . . . . . . Weapon Failures 1 | . . . 1 . . . . . . . . . . . . Overload Shots . | . . . . . . . . . . . . . . . . Overflow Damage 4773 | . . . 49 . . . . . 31 61 47 286 1946 1251 1102 Projectiles 2697 | . . . 32 . . . . . 31 61 . 167 1063 626 717 Explosions 2062 | . . . 17 . . . . . . . 47 119 869 625 385 Melee 14 | . . . . . . . . . . . . . 14 . . Knockbacks 32 | . . . 3 . . 2 . . . . . . 9 3 15 Impact . | . . . . . . . . . . . . . . . . Kinetic 32 | . . . 3 . . 2 . . . . . . 9 3 15 Secondary . | . . . . . . . . . . . . . . . . Self-Inflicted Damage 1115 | . . . 17 . . . . . . . . 75 573 248 202 Shots 16 | . . . 1 . . . . . . . . 1 7 4 3 Rammed 1 | . 1 . . . . . . . . . . . . . . Targets Rammed 5 | . 1 . . . . . . . . . . . 3 1 . Kicked 4 | . . . . . . . . . . . . . 3 1 . Crushed . | . . . . . . . . . . . . . . . . Highest Temperature 434 | 9 144 220 315 338 60 342 . 66 102 275 . . 212 308 434 Average Temperature 84 | 6 37 86 74 127 24 182 . 33 63 91 . . 55 101 111 Received Heat Transfer 2264 | . 72 63 912 162 134 27 . 12 . 40 28 20 356 48 390 Effects 7 | . . . 3 . . 1 . . . . . . . . 3 Shutdowns 1 | . . . . . . 1 . . . . . . . . . Interference 6 | . . . 3 . . . . . . . . . . . 3 Siege Activations . | . . . . . . . . . . . . . . . . Martial Activations . | . . . . . . . . . . . . . . . . Shielding Activations 2 | . . . . . . . . . . . . . 2 . . Total Turns 18 | . . . . . . . . . . . . . 18 . . Longest Duration 11 | . . . . . . . . . . . . . 11 . . Robots Disrupted . | . . . . . . . . . . . . . . . . Combat Hostiles . | . . . . . . . . . . . . . . . . Robots Corrupted 2 | . . . . . . . . . . 1 . . 1 . . Combat Hostiles . | . . . . . . . . . . . . . . . . Parts Fried 9 | . . . . . . 1 . . 4 . . . 4 . . Impact Corruptions 1 | . . . . . . . . . . . . . 1 . . Robots Melted 23 | . . . 1 1 . . . . . 2 2 1 14 . 2 Combat Hostiles 22 | . . . 1 1 . . . . . 1 2 1 14 . 2 Parts Melted 37 | . 1 . 3 1 . . . . . 5 1 . 15 5 6 Heat Transferred 37905 | . 555 185 2769 518 . . . 185 . 1003 725 2682 18746 5745 4792 Parts Sabotaged 1 | . . . . . . . . . . . . . 1 . . Parts Stolen . | . . . . . . . . . . . . . . . . Parts Stripped . | . . . . . . . . . . . . . . . . Power Chain Reactions . | . . . . . . . . . . . . . . . . Alert | -11 -10 -10 -10 -7 -7 -5 -4 -4 -3 -3 -2 -2 -2 -1 -1 ------- Run | Yrd Mat Min Sub Rec Scr Fac Fac DSF Res Tes Res Qua Sec Acc Com Maximum Alert Level 5 | . . 1 . 1 . 2 1 2 1 5 5 5 5 5 5 Low Security (%) 23 | 100 100 35 . 77 . 16 77 27 20 8 . . . . . Level 1 11 | . . 64 . 22 . 77 22 26 79 17 . . . . . Level 2 1 | . . . . . . 6 . 45 . 5 . . . . . Level 3 2 | . . . . . . . . . . 19 . . . . . Level 4 14 | . . . . . . . . . . 32 78 38 6 . . Level 5 22 | . . . . . . . . . . 9 21 40 20 65 74 High Security 23 | . . . . . . . . . . 6 . 21 72 34 25 Max Security . | . . . . . . . . . . . . . . . . Sterilizations 2 | . . . . . . . . 1 . . . . 1 . . Peak Influence 6310 | 5 50 388 . 301 . 470 230 456 256 2080 2012 2642 6310 5602 4505 Initial 3785 | . . . . 280 . . 230 23 256 96 1170 1127 1485 3785 3584 Average 2053 | . 8 269 . 114 . 272 90 293 214 1012 1388 1894 4593 4327 3956 Influence Increases 16831 | 5 130 448 1114 161 . 600 13 443 46 2482 1164 1813 5123 2023 1266 Destroy 0b10 Robot/C 7720 | . 40 100 1000 80 . 160 . 180 . 1320 380 560 2800 640 460 Destroy 0b10 Robot/NC 430 | 5 30 . 5 10 . 10 . 15 5 60 30 60 110 40 50 Destroy Leader 1014 | . 16 10 . 10 . 32 . 30 . 184 94 62 382 142 52 Allied During Kill 1443 | . . 5 4 . . 67 . 78 1 478 219 243 338 10 . Successful Hack 160 | . 13 . . 24 . . 5 . 12 . 28 . 23 . 55 Select Force Hacks 30 | . . . . 30 . . . . . . . . . . . Disable Machine 1050 | . . 15 . . . 45 . . . 150 45 225 330 150 90 Anti-Garrison Action 300 | . . . . . . . . . . . . . 150 150 . Destroy Structure 3550 | . 1 2 . 7 . 98 8 140 28 290 368 663 930 696 319 Partial Spotted 15 | . . . . . . . . . . . . . . . 15 Lose Combat Pursuer 615 | . 30 . 105 . . . . . . . . . 60 195 225 Miscellaneous 504 | . . 316 . . . 188 . . . . . . . . . Influence Decreases 12471 | 5 130 120 856 714 33 130 450 20 330 574 1240 1175 1455 2731 2508 Entered New Map 8524 | . . . 172 306 33 . 240 10 200 76 910 877 1157 2525 2018 Time Decay 3017 | 5 130 120 484 388 . 100 60 . 130 398 310 278 238 206 170 Lost Part 400 | . . . 120 20 . 30 . 10 . . . . 40 . 180 Lost Ally 380 | . . . 80 . . . . . . 100 20 20 20 . 140 Purge Threat 150 | . . . . . . . 150 . . . . . . . . Squads Dispatched 92 | . 1 2 . 1 . 1 . 2 1 19 3 10 27 19 6 Investigation 5 | . 1 2 . 1 . . . . . . 1 . . . . Extermination 5 | . . . . . . . . . . 3 . . 1 1 . Reinforcement 26 | . . . . . . 1 . 2 1 11 . 3 4 4 . Assault 49 | . . . . . . . . . . 2 2 7 20 12 6 Garrison 6 | . . . . . . . . . . 3 . . 2 1 . Intercept 1 | . . . . . . . . . . . . . . 1 . Searches Triggered . | . . . . . . . . . . . . . . . . Construction Impeded 3 | . . . . . . . . . . 1 . . 1 1 . Haulers Reinforced 3 | . . . . . . . . . . 1 . . . 2 . Active Scanning Responses . | . . . . . . . . . . . . . . . . Cargo Convoy Interrupts . | . . . . . . . . . . . . . . . . Stealth | -11 -10 -10 -10 -7 -7 -5 -4 -4 -3 -3 -2 -2 -2 -1 -1 --------- Run | Yrd Mat Min Sub Rec Scr Fac Fac DSF Res Tes Res Qua Sec Acc Com Distress Signals 12 | . . . . . . . . . . 2 2 1 2 4 1 Communications Jammed 124 | . . . . . . . . . . 2 86 35 1 . . Distress Signals 124 | . . . . . . . . . . 2 86 35 1 . . Times Spotted 500 | . 5 5 89 4 20 12 . 9 1 38 14 24 160 57 62 Peak Tracking Total 27 | . 3 3 6 1 8 3 . 4 1 4 5 5 27 15 22 Tactical Retreats 20 | . 1 . 4 . . . . . . . . . 3 5 7 Traps | -11 -10 -10 -10 -7 -7 -5 -4 -4 -3 -3 -2 -2 -2 -1 -1 ------- Run | Yrd Mat Min Sub Rec Scr Fac Fac DSF Res Tes Res Qua Sec Acc Com Traps Triggered 4 | . 1 . . . . . . 1 . . . . . 2 . Indirectly . | . . . . . . . . . . . . . . . . Trap Hack Attempts . | . . . . . . . . . . . . . . . . Triggered . | . . . . . . . . . . . . . . . . Disarmed 3 | . 3 . . . . . . . . . . . . . . Reprogrammed . | . . . . . . . . . . . . . . . . Reused . | . . . . . . . . . . . . . . . . Traps Extracted . | . . . . . . . . . . . . . . . . Installed . | . . . . . . . . . . . . . . . . Triggered . | . . . . . . . . . . . . . . . . Machines | -11 -10 -10 -10 -7 -7 -5 -4 -4 -3 -3 -2 -2 -2 -1 -1 ---------- Run | Yrd Mat Min Sub Rec Scr Fac Fac DSF Res Tes Res Qua Sec Acc Com Machines Disabled 101 | . . 2 3 . 12 3 . . . 13 4 16 31 11 6 Max in Single Turn 3 | . . 1 1 . . . . . . 2 2 3 3 2 1 Garrison Access 2 | . . . . . . . . . . . . . 1 1 . Energy Cycler 1 | . . . . . . . . . . . . . . 1 . Machines Repaired . | . . . . . . . . . . . . . . . . Machines Dismantled . | . . . . . . . . . . . . . . . . Machines Sabotaged . | . . . . . . . . . . . . . . . . Overloaded Fab Kills . | . . . . . . . . . . . . . . . . Hacking | -11 -10 -10 -10 -7 -7 -5 -4 -4 -3 -3 -2 -2 -2 -1 -1 --------- Run | Yrd Mat Min Sub Rec Scr Fac Fac DSF Res Tes Res Qua Sec Acc Com Machines Accessed 44 | . 6 . 4 5 1 . 2 . 3 2 5 4 5 2 5 Terminals 33 | . 5 . . 4 . . 2 . 2 2 3 4 4 2 5 Fabricators . | . . . . . . . . . . . . . . . . Repair Stations . | . . . . . . . . . . . . . . . . Recycling Units 2 | . 1 . . 1 . . . . . . . . . . . Scanalyzers 3 | . . . . . . . . . 1 . 1 . 1 . . Garrison Access 1 | . . . . . . . . . . . 1 . . . . Total Hacks 87 | . 12 . 9 7 8 . 5 . 7 6 8 7 9 2 7 Successful 48 | . 8 . 9 4 8 . 3 . 1 3 3 2 4 . 3 Failed 39 | . 4 . . 3 . . 2 . 6 3 5 5 5 2 4 Catastrophic 13 | . . . . 1 . . 1 . 2 . 1 3 1 2 2 Database Lockouts . | . . . . . . . . . . . . . . . . Manual 36 | . 13 . . 6 . . 1 . 3 2 3 3 . . 5 Terminals 61 | . 11 . . 6 . . 5 . 5 6 5 7 7 2 7 Fabricators . | . . . . . . . . . . . . . . . . Repair Stations . | . . . . . . . . . . . . . . . . Recycling Units 2 | . 1 . . 1 . . . . . . . . . . . Scanalyzers 6 | . . . . . . . . . 2 . 2 . 2 . . Garrison Access 1 | . . . . . . . . . . . 1 . . . . Terminal Hacks 32 | . 1 . 9 1 8 . 3 . . 3 1 2 3 . 1 Record 7 | . . . 6 . . . . . . . . 1 . . . Robot Analysis 8 | . . . . . 8 . . . . . . . . . . Prototype ID Bank 2 | . . . . . . . . . . 1 . . . . 1 Open Door 5 | . . . 1 . . . . . . 1 . . 3 . . Open DSF 1 | . . . . . . . 1 . . . . . . . . Branch Access Points 1 | . . . . . . . . . . . 1 . . . . Alert Level 3 | . . . . . . . 1 . . 1 . 1 . . . Unreport Threat 1 | . . . . . . . 1 . . . . . . . . Disarm Traps 1 | . 1 . . . . . . . . . . . . . . Zone Layout 1 | . . . . 1 . . . . . . . . . . . Proto ID Catalog 1 | . . . 1 . . . . . . . . . . . . Release Object 1 | . . . 1 . . . . . . . . . . . . Fabricator Hacks . | . . . . . . . . . . . . . . . . Repair Station Hacks . | . . . . . . . . . . . . . . . . Recycling Unit Hacks 1 | . 1 . . . . . . . . . . . . . . Report Inventory 1 | . 1 . . . . . . . . . . . . . . Scanalyzer 3 | . . . . . . . . . 1 . 1 . 1 . . Retrieve Study 3 | . . . . . . . . . 1 . 1 . 1 . . Garrison Access Hacks . | . . . . . . . . . . . . . . . . Unauthorized Hacks 12 | . 6 . . 3 . . . . . . 1 . . . 2 Terminals 11 | . 6 . . 2 . . . . . . 1 . . . 2 Botnet 5 | . 1 . . 1 . . . . . . 1 . . . 2 Skim 6 | . 5 . . 1 . . . . . . . . . . . Fabricators . | . . . . . . . . . . . . . . . . Repair Stations . | . . . . . . . . . . . . . . . . Recycling Units 1 | . . . . 1 . . . . . . . . . . . Tunnel 1 | . . . . 1 . . . . . . . . . . . Scanalyzers . | . . . . . . . . . . . . . . . . Garrison Access . | . . . . . . . . . . . . . . . . Data Cores Recovered 3 | . 1 . . . . . . . 1 . . . . . 1 Used . | . . . . . . . . . . . . . . . . Hacking Detections 30 | . 3 . . 4 . . 2 . 3 1 5 3 2 2 5 Full Trace Events . | . . . . . . . . . . . . . . . . Feedback Events . | . . . . . . . . . . . . . . . . Feedback Blocked . | . . . . . . . . . . . . . . . . Robot Schematics Acquired 4 | . . . . . . . . . . 4 . . . . . Robots Built . | . . . . . . . . . . . . . . . . Authchips . | . . . . . . . . . . . . . . . . Time . | . . . . . . . . . . . . . . . . Total Robot Build Rating . | . . . . . . . . . . . . . . . . Part Schematics Acquired 44 | . . . . . . . . . . 17 4 12 11 . . Parts Built . | . . . . . . . . . . . . . . . . Authchips . | . . . . . . . . . . . . . . . . Time . | . . . . . . . . . . . . . . . . Total Part Build Rating . | . . . . . . . . . . . . . . . . Part Studies Acquired 3 | . . . . . . . . . 1 . 1 . 1 . . Parts Repaired . | . . . . . . . . . . . . . . . . Time . | . . . . . . . . . . . . . . . . Parts Recycled . | . . . . . . . . . . . . . . . . Recycled Matter . | . . . . . . . . . . . . . . . . Retrieved Matter . | . . . . . . . . . . . . . . . . Retrieved Components . | . . . . . . . . . . . . . . . . Parts Scanalyzed . | . . . . . . . . . . . . . . . . Part Schematics Acquired . | . . . . . . . . . . . . . . . . Parts Damaged . | . . . . . . . . . . . . . . . . Bothacking | -11 -10 -10 -10 -7 -7 -5 -4 -4 -3 -3 -2 -2 -2 -1 -1 ------------ Run | Yrd Mat Min Sub Rec Scr Fac Fac DSF Res Tes Res Qua Sec Acc Com Used RIF Installer . | . . . . . . . . . . . . . . . . Robots Hacked 3 | . . . . . . . . . . 1 1 . . . 1 Non-combat . | . . . . . . . . . . . . . . . . Combat 3 | . . . . . . . . . . 1 1 . . . 1 Robot Hacks Applied 3 | . . . . . . . . . . 1 1 . . . 1 parse_system 3 | . . . . . . . . . . 1 1 . . . 1 Relay Couplers Released 2 | . . . . . . . . . . . . . 1 1 . Machine Destruction 2 | . . . . . . . . . . . . . 1 1 . Fabnet Peak Effective % . | . . . . . . . . . . . . . . . . Robots Rewired 1 | . . . . . . . . . . 1 . . . . . Allies Hacked 4 | . . . . . . . . . . 2 . . . 2 . Hacks Repelled . | . . . . . . . . . . . . . . . . Allies | -11 -10 -10 -10 -7 -7 -5 -4 -4 -3 -3 -2 -2 -2 -1 -1 -------- Run | Yrd Mat Min Sub Rec Scr Fac Fac DSF Res Tes Res Qua Sec Acc Com Total Allies 30 | . . 1 4 . 3 . . . . 6 4 . . 2 10 Largest Group 7 | . . 1 3 . 3 2 2 2 2 5 4 3 1 2 7 Highest-Rated Group 782 | . . 90 90 . 592 525 525 525 515 782 712 669 541 96 99 Highest-Rated Ally 553 | . . 90 90 . 464 464 464 464 454 454 541 553 541 48 30 Total Orders 5 | . . . . . 5 . . . . . . . . . . STAY 3 | . . . . . 3 . . . . . . . . . . FOLLOW 2 | . . . . . 2 . . . . . . . . . . Ally Attacks 777 | . . 7 23 . 51 49 . 41 . 316 65 59 87 . 79 Total Damage 38431 | . . 269 475 . 3225 1811 . 2197 . 13895 3636 4693 7287 . 943 Kills 192 | . . 3 1 . 19 9 . 8 . 62 19 26 45 . . Allies Corrupted 2 | . . . . . . . . . . 1 . . 1 . . Allies Melted . | . . . . . . . . . . . . . . . . X0-1V1 Amusement Gains 333 | . 8 . 10 . . 20 . 5 5 84 36 49 38 35 43 Average Entertainment 46 | . 4 . 7 2 . 1 13 17 23 71 81 87 95 88 83 Good Acts 196 | . 6 7 95 5 14 18 . 4 2 11 7 4 10 3 10 Bad Acts 207 | . . 16 132 1 9 22 . . . 1 1 1 8 3 13 Intel | -11 -10 -10 -10 -7 -7 -5 -4 -4 -3 -3 -2 -2 -2 -1 -1 ------- Run | Yrd Mat Min Sub Rec Scr Fac Fac DSF Res Tes Res Qua Sec Acc Com Active Infowar (turns) 7070 | 34 510 . . . . 213 137 198 278 1009 683 775 1884 654 695 Optics 6526 | . . . . . . 213 137 198 278 1009 683 775 1884 654 695 Seismic 544 | 34 510 . . . . . . . . . . . . . . Jamming 2716 | . . . . . . . . . . 867 683 775 391 . . Robot Analysis Total 8 | . . . . . 8 . . . . . . . . . . Derelict Logs Recovered 7 | . . 1 1 . 5 . . . . . . . . . . Drone Launches . | . . . . . . . . . . . . . . . . Drone Recoveries . | . . . . . . . . . . . . . . . . Exploration | -11 -10 -10 -10 -7 -7 -5 -4 -4 -3 -3 -2 -2 -2 -1 -1 ------------- Run | Yrd Mat Min Sub Rec Scr Fac Fac DSF Res Tes Res Qua Sec Acc Com Turns Passed 19080 | 78 813 249 6077 975 4317 216 137 198 278 1009 683 775 1884 654 737 Spaces Moved 10029 | 49 422 91 2270 468 2628 80 65 101 204 601 489 501 912 709 439 Core 48 | 16 . . . . . . . . . . . . . . 32 Treads 2251 | 33 422 91 1705 . . . . . . . . . . . . Legs 5522 | . . . . . 1810 80 65 101 204 601 489 501 912 385 374 Wheels 1851 | . . . 565 468 818 . . . . . . . . . . Hover . | . . . . . . . . . . . . . . . . Flight 20 | . . . . . . . . . . . . . . . 20 Fastest Speed 40 | 50 160 160 120 165 105 122 123 120 112 113 107 107 115 117 40 Average Speed 157 | 124 160 235 230 184 140 122 123 122 117 116 109 116 140 117 113 Slowest Speed 320 | 160 160 320 320 210 295 123 123 195 120 120 113 176 209 199 260 Overloaded Moves . | . . . . . . . . . . . . . . . . Propulsion Burnouts . | . . . . . . . . . . . . . . . . Robots Hopped . | . . . . . . . . . . . . . . . . Potential Cave-ins . | . . . . . . . . . . . . . . . . Cave-ins Triggered . | . . . . . . . . . . . . . . . . Microwarps 23 | . . . . . . . . . . . . . . 20 3 Exploration Rate (%) 44 | 4 61 32 82 70 83 9 5 88 10 74 16 57 67 27 25 Regions Visited 15 Branch Regions 8 Pre-discovered Areas 4 | . . . 1 1 2 . . . . . . . . . . Known Exits Taken 7 | . . . 1 . 1 1 1 . . 1 1 . 1 . . Unknown Exits Taken 7 | 1 1 1 . 1 . . . . 1 . . 1 . 1 . Scrap Searched 11 | . . . 5 . 6 . . . . . . . . . . Spaces Dug 33 | . . . 1 2 2 . . . 2 14 7 2 2 1 . Terrain Destroyed 1093 | . . . 47 9 2 . . . 2 32 66 165 386 275 109 Melee 1 | . . . . . 1 . . . . . . . . . . Projectile 98 | . . . 18 9 1 . . . 2 26 8 4 14 11 5 AOE 962 | . . . 29 . . . . . . 5 57 161 348 259 103 Terrain Rammed . | . . . . . . . . . . . . . . . . Walls Destroyed . | . . . . . . . . . . . . . . . . Machines Disabled . | . . . . . . . . . . . . . . . . Actions | -11 -10 -10 -10 -7 -7 -5 -4 -4 -3 -3 -2 -2 -2 -1 -1 --------- Run | Yrd Mat Min Sub Rec Scr Fac Fac DSF Res Tes Res Qua Sec Acc Com Total 12416 | 64 524 111 2760 541 3257 182 121 165 239 812 592 642 1287 502 617 Wait 1147 | . 40 5 104 17 508 81 51 12 7 52 66 81 72 10 41 Move 9700 | 48 421 90 2269 467 2627 79 64 100 203 600 488 500 911 404 429 Hop . | . . . . . . . . . . . . . . . . Pick Up 274 | 8 22 5 59 14 48 . 3 14 7 30 2 5 36 8 13 Fast Attach 54 | 1 2 . 6 . 4 . 1 7 3 2 . 5 18 3 2 Attach 148 | 6 1 3 42 3 6 6 2 4 7 7 2 3 23 7 26 Detach 26 | . . . 7 1 1 . . . 1 1 . 3 5 1 6 Swap 82 | . 6 1 22 1 6 . . . 1 18 7 2 10 4 4 Drop 261 | . 12 . 47 12 49 . . 15 7 31 . 12 47 10 19 Fire 666 | 1 19 7 191 24 5 16 . 8 3 69 26 31 135 54 77 Melee 7 | . . . . . 3 . . . . 2 1 . 1 . . Ram . | . . . . . . . . . . . . . . . . Kick 4 | . . . . . . . . . . . . . 3 1 . Crush 1 | . 1 . . . . . . . . . . . . . . Escape Stasis 33 | . . . 2 . . . . 5 . . . . 26 . . Rewire 5 | . . . 3 2 . . . . . . . . . . . Trap . | . . . . . . . . . . . . . . . . Miscellaneous 8 | . . . 8 . . . . . . . . . . . . Route ------- -11/Scrapyard -10/Materials (discovered 4 exits: *Mat x2 / [*Min] / *Sub) -10/Mines (discovered 2 exits: Mat / *Sub) -10/Subcaves (discovered 3 exits: *Mat / *Rec / *Scr) -7/Recycling (discovered 2 exits: Fac / *Scr) -7/Scraptown (discovered 2 exits: *Fac x2) -5/Factory (discovered 3 exits: *Fac x2 / [*Ext]) -4/Factory -4/DSF -3/Research (discovered 2 exits: Res / *Tes) -3/Testing -2/Research (discovered 2 exits: *Qua x2) -2/Quarantine (discovered 2 exits: *Sec / [*Frg]) -2/Section 7 -1/Access (discovered 2 exits: Sur / *Com) -1/Command History --------- Turn | Location | Event 52 | -11/Scrapyard | Discovered new exit (range 12) 79 | -11/Scrapyard | Entered Materials 315 | -10/Materials | Build established: Mutant 433 | -10/Materials | Discovered new exit (range 4) 516 | -10/Materials | Discovered new exit (range 15) 560 | -10/Materials | Discovered new exit (range 6) 589 | -10/Materials | Prayed at D.C.S.S. Altar Unit 814 | -10/Materials | Inventory capacity permanently improved by X0-1V1 (+1; -100 max core) 862 | -10/Materials | X0-1V1 put everyone to sleep 875 | -10/Materials | X0-1V1 activates XOMVISION 889 | -10/Materials | Identified exit to Materials 889 | -10/Materials | X0-1V1 revealed exit location to -9/Materials 892 | -10/Materials | Entered Mines 892 | -10/Mines | X0-1V1 added 0b10 threat records associated with you (minor) 934 | -10/Mines | Weapon slot count permanently improved by X0-1V1 (+1) 951 | -10/Mines | X0-1V1 sent allied H-61 Shepherd (x1) 966 | -10/Mines | Core integrity restored by X0-1V1 (+34) 976 | -10/Mines | Discovered new exit (range 8) 981 | -10/Mines | X0-1V1 added 0b10 threat records associated with you (considerable) 1006 | -10/Mines | X0-1V1 sent you into danger 1020 | -10/Mines | Joined a pair of Derelicts in attacking an 0b10 outpost 1026 | -10/Mines | X0-1V1 vaporized surrounding terrain (radius 23) 1028 | -10/Mines | X0-1V1 mutated your Propulsion slot to Utility slot 1040 | -10/Mines | X0-1V1 revealed exit location to -9/Materials 1084 | -10/Mines | X0-1V1 put everyone to sleep 1141 | -10/Mines | Entered Subcaves 1142 | -10/Subcaves | Approached by a straggling Scientist 1153 | -10/Subcaves | X0-1V1 activates XOMVISION 1158 | -10/Subcaves | Core integrity permanently improved by X0-1V1 (+200) 1170 | -10/Subcaves | Identified exit to Materials 1170 | -10/Subcaves | X0-1V1 revealed exit location to -8/Materials 1186 | -10/Subcaves | X0-1V1 tapped a No Entrance sign 1210 | -10/Subcaves | X0-1V1 sent hostile G-34 Mercenary (x3) 1321 | -10/Subcaves | Build established: Tank 1441 | -10/Subcaves | Scientist uncovered a shortcut to Scraptown 1473 | -10/Subcaves | Shifting Twisted Machinery released Sub. Beam Cannon 1584 | -10/Subcaves | X0-1V1 activates XOMVISION 1611 | -10/Subcaves | Shifting Twisted Machinery released Mak. Thermal Plating 1620 | -10/Subcaves | Visited Clippyterm 1627 | -10/Subcaves | Learned Research machine intel 1627 | -10/Subcaves | Learned location of Section 7 (-2) 2051 | -10/Subcaves | Identified exit to Recycling 2051 | -10/Subcaves | X0-1V1 revealed exit location to -7/Recycling 2181 | -10/Subcaves | X0-1V1 sent you into danger 2468 | -10/Subcaves | Disturbed a concealed Subdweller 2482 | -10/Subcaves | X0-1V1 sent hostile S-10 Pest (x3) 2671 | -10/Subcaves | X0-1V1 caused items to flee you 2678 | -10/Subcaves | X0-1V1 revealed exit location to -8/Materials 2684 | -10/Subcaves | X0-1V1 sent hostile G-34 Mercenary (x3) 2789 | -10/Subcaves | System corruption reached 10% 2795 | -10/Subcaves | X0-1V1 activates XOMVISION 2817 | -10/Subcaves | X0-1V1 sent hostile S-10 Pest (x5) 2859 | -10/Subcaves | Core integrity restored by X0-1V1 (+84) 2918 | -10/Subcaves | X0-1V1 sent hostile G-34 Mercenary (x3) 2930 | -10/Subcaves | Items stopped fleeing you 2943 | -10/Subcaves | Weapon slot count temporarily expanded by X0-1V1 (+1) 2945 | -10/Subcaves | X0-1V1 mutated your Utility slot to Power slot 3021 | -10/Subcaves | X0-1V1 sent hostile S-10 Pest (x5) 3061 | -10/Subcaves | System corruption reached 30% 3075 | -10/Subcaves | Core integrity restored by X0-1V1 (+84) 3077 | -10/Subcaves | Lost 3 parts (1p1n1w) 3117 | -10/Subcaves | X0-1V1 sent hostile S-10 Pest (x4) 3134 | -10/Subcaves | X0-1V1 mutated your Weapon slot to Utility slot 3203 | -10/Subcaves | X0-1V1 sent you into danger 3236 | -10/Subcaves | X0-1V1 activates XOMVISION 3244 | -10/Subcaves | X0-1V1 mutated your Power slot to Propulsion slot 3269 | -10/Subcaves | X0-1V1 sent you into danger 3682 | -10/Subcaves | Weapon slot count reverted to normal (-1) 3714 | -10/Subcaves | Core integrity restored by X0-1V1 (+84) 3974 | -10/Subcaves | Build established: Subdweller-Mutant 4100 | -10/Subcaves | X0-1V1 activates XOMVISION 4147 | -10/Subcaves | Core integrity restored by X0-1V1 (+84) 4257 | -10/Subcaves | X0-1V1 mutated your Utility slot to Weapon slot 4336 | -10/Subcaves | X0-1V1 sent hostile S-10 Pest (x4) 4381 | -10/Subcaves | X0-1V1 mutated your Weapon slot to Utility slot 4439 | -10/Subcaves | X0-1V1 sent hostile S-10 Pest (x4) 4449 | -10/Subcaves | Weapon slot count temporarily expanded by X0-1V1 (+3) 4486 | -10/Subcaves | X0-1V1 mutated your Utility slot to Propulsion slot 4528 | -10/Subcaves | X0-1V1 sent hostile G-34 Mercenary (x4) 4598 | -10/Subcaves | X0-1V1 activates XOMVISION 4601 | -10/Subcaves | X0-1V1 mutated your Propulsion slot to Utility slot 4631 | -10/Subcaves | X0-1V1 sent hostile G-34 Mercenary (x3) 4650 | -10/Subcaves | X0-1V1 sent allied S-10 Pest (x3) 4656 | -10/Subcaves | X0-1V1 sent you into danger 4683 | -10/Subcaves | X0-1V1 sent allied H-61 Shepherd (x1) 4702 | -10/Subcaves | Lost 3 allies 4723 | -10/Subcaves | Spotted Run 'n Gun 4732 | -10/Subcaves | Spotted Budget Cyclops 4734 | -10/Subcaves | Ambushed by Subdweller buried in earth 4747 | -10/Subcaves | Found Corrupted H3-MLN's Flail 4754 | -10/Subcaves | Destroyed Run 'n Gun 4788 | -10/Subcaves | Destroyed Budget Cyclops 4796 | -10/Subcaves | Found Botcube 4807 | -10/Subcaves | Found Botcube 5049 | -10/Subcaves | Weapon slot count reverted to normal (-3) 5105 | -10/Subcaves | X0-1V1 mutated your Propulsion slot to Weapon slot 5393 | -10/Subcaves | Build established: Tank 5849 | -10/Subcaves | A swath of the cavern ceiling suddenly collapsed 5926 | -10/Subcaves | A swath of the cavern ceiling suddenly collapsed 5943 | -10/Subcaves | X0-1V1 sent you into danger 5950 | -10/Subcaves | Core integrity fell below 50% 5970 | -10/Subcaves | X0-1V1 sent hostile G-34 Mercenary (x3) 5974 | -10/Subcaves | X0-1V1 mutated your Weapon slot to Power slot 6046 | -10/Subcaves | Shifting Twisted Machinery released Sub. Beam Cannon 6059 | -10/Subcaves | Shifting Twisted Machinery released Sub. Beam Cannon 6066 | -10/Subcaves | X0-1V1 sent you into danger 6107 | -10/Subcaves | X0-1V1 activates XOMVISION 6114 | -10/Subcaves | Core integrity restored by X0-1V1 (+73) 6128 | -10/Subcaves | X0-1V1 mutated your Utility slot to Propulsion slot 6185 | -10/Subcaves | Core integrity restored by X0-1V1 (+87) 6188 | -10/Subcaves | X0-1V1 sent hostile S-10 Pest (x5) 6244 | -10/Subcaves | Visited 4L-MR0's lab 6273 | -10/Subcaves | X0-1V1 sent hostile S-10 Pest (x5) 6306 | -10/Subcaves | Found Flightbrick 6582 | -10/Subcaves | Build established: Hauler-Mutant 6955 | -10/Subcaves | Found SUBCON Basin 7218 | -10/Subcaves | Entered Recycling 7860 | -7/Recycling | X0-1V1 activates XOMVISION 8138 | -7/Recycling | Scanned before Scraplab entrance 8161 | -7/Recycling | Entered Scraplab 8168 | -7/Recycling | Identified exit to Factory 8168 | -7/Recycling | X0-1V1 revealed exit location to -5/Factory 8191 | -7/Recycling | Discovered new exit (range 2) 8193 | -7/Recycling | Entered Scraptown 8303 | -7/Scraptown | Visited SPCMW 8327 | -7/Scraptown | Visited Cave Peace 8418 | -7/Scraptown | Scanned Subdweller tech in exchange for log data 8424 | -7/Scraptown | Learned Factory emergency access door positions 8427 | -7/Scraptown | Learned Research non-interactive machine intel 8430 | -7/Scraptown | Learned location of Armory (-4) 8433 | -7/Scraptown | Learned location of Zion (-6) 8436 | -7/Scraptown | Learned 12 Research zone layouts 8455 | -7/Scraptown | Discovered exit to Factory (range 13) 8939 | -7/Scraptown | Visited Comm Corps 8952 | -7/Scraptown | Visited Cyclists 9016 | -7/Scraptown | Visited IN-MT5's Study 9036 | -7/Scraptown | Visited The Evicted 9072 | -7/Scraptown | Visited Fellowship of the Rings 9087 | -7/Scraptown | Visited UFD Registry 9087 | -7/Scraptown | Registered with UFD as "Megachassis" 9122 | -7/Scraptown | Visited Analyses Database 9158 | -7/Scraptown | Visited Chapter 10 9181 | -7/Scraptown | Visited Scrap Suit Storage 9228 | -7/Scraptown | Delivered Scrap Shield to a Scientist 9303 | -7/Scraptown | Visited DA-N13 Charitable Foundation 9318 | -7/Scraptown | Found DCF Scrap (28 items) 9359 | -7/Scraptown | Visited Derelict Rescue Squad 9380 | -7/Scraptown | Visited Junk Repository 9408 | -7/Scraptown | Visited A0-MCA Data Center 9431 | -7/Scraptown | Visited Science Testing Area 9484 | -7/Scraptown | Visited LU-1G1's Boring Crew 9753 | -7/Scraptown | Found DRS Beacon 9801 | -7/Scraptown | Given a B rating by A0-MCA 9806 | -7/Scraptown | Found A0-MCA's Component Scanner 9941 | -7/Scraptown | Build established: Derelict-Mutant 10291 | -7/Scraptown | Build established: Mutant 10877 | -7/Scraptown | Found Scrap Suit 11404 | -7/Scraptown | Botcube activated 11426 | -7/Scraptown | Botcube completed mutation into treaded form, armed with 2 launchers 11438 | -7/Scraptown | Botcube activated 11460 | -7/Scraptown | Botcube completed mutation into legged form, armed with 1 gun, 1 cannon 11464 | -7/Scraptown | Attached CPS modules to *Chaos Scrapod KI 11472 | -7/Scraptown | Attached CPS modules to *Chaos Scrapoid EX 11769 | -7/Scraptown | Build established: Derelict-Mutant 12130 | -7/Scraptown | X0-1V1 brought Wyrm Statue to life 12130 | -7/Scraptown | Attacked by Scraptown defenders 12131 | -7/Scraptown | Attached CPS modules to Chaos Wyrm 12279 | -7/Scraptown | X0-1V1 vaporized surrounding terrain (radius 18) 12319 | -7/Scraptown | X0-1V1 caused items to flee you 12326 | -7/Scraptown | X0-1V1 sent you into danger 12342 | -7/Scraptown | Allies destroyed Triborg 12343 | -7/Scraptown | X0-1V1 upgraded hostiles (x2) 12369 | -7/Scraptown | Core integrity restored by X0-1V1 (+73) 12386 | -7/Scraptown | X0-1V1 activates XOMVISION 12388 | -7/Scraptown | X0-1V1 revealed exit location to -5/Factory 12428 | -7/Scraptown | Core integrity restored by X0-1V1 (+101) 12431 | -7/Scraptown | Build established: Mutant 12501 | -7/Scraptown | Items stopped fleeing you 12510 | -7/Scraptown | Entered Factory 12510 | -5/Factory | Accompanied by 2 allies 12510 | -5/Factory | Evolved 10 slots: Power x1, Propulsion x3, Utility x6 12529 | -5/Factory | X0-1V1 added 0b10 threat records associated with you (considerable) 12543 | -5/Factory | X0-1V1 caused items to flee you 12544 | -5/Factory | X0-1V1 vaporized surrounding terrain (radius 22) 12563 | -5/Factory | X0-1V1 sent you into danger 12567 | -5/Factory | X0-1V1 upgraded hostiles (x2) 12585 | -5/Factory | Weapon slot count temporarily expanded by X0-1V1 (+4) 12589 | -5/Factory | X0-1V1 foreshadows a heat wave 12602 | -5/Factory | X0-1V1 enhanced Transport squad support 12604 | -5/Factory | Identified exit to Factory 12604 | -5/Factory | X0-1V1 revealed exit location to -4/Factory 12620 | -5/Factory | X0-1V1 released a cloud of subatomizers 12620 | -5/Factory | X0-1V1 vaporized surrounding terrain (radius 19) 12622 | -5/Factory | X0-1V1 redirected Transport squads to designated parking area 12636 | -5/Factory | Discovered new exit (range 13) 12656 | -5/Factory | X0-1V1 put everyone to sleep 12666 | -5/Factory | X0-1V1 revealed exit location to -4/Factory 12676 | -5/Factory | System corruption reached 10% 12726 | -5/Factory | Entered another Factory area 12726 | -4/Factory | Accompanied by 2 allies 12726 | -4/Factory | Evolved 2 slots: Propulsion x1, Utility x1 12812 | -4/Factory | Identified exit to DSF 12863 | -4/Factory | Entered DSF 12863 | -4/DSF | Accompanied by 2 allies 12879 | -4/DSF | Additional patrols routed to DSF 12922 | -4/DSF | X0-1V1 activates XOMVISION 12927 | -4/DSF | Weapon slot count reverted to normal (-4) 13019 | -4/DSF | Discovered new exit (range 14) 13022 | -4/DSF | Sterilization system engaged 13042 | -4/DSF | Ambient heat levels rising (+10) 13057 | -4/DSF | Ambient heat levels rising (+10) 13061 | -4/DSF | Entered Research 13061 | -3/Research | Accompanied by 2 allies 13061 | -3/Research | Evolved 2 slots: Power x1, Weapon x1 13062 | -3/Research | Identified exit to Research 13063 | -3/Research | Loaded intel: 135 machine locations 13064 | -3/Research | Loaded intel: 90 non-interactive machine locations 13248 | -3/Research | X0-1V1 sent you to a vault 13262 | -3/Research | Found Singularity Reactor 13269 | -3/Research | Found Singularity Reactor 13295 | -3/Research | Discovered new exit (range 16) 13339 | -3/Research | Entered Testing 13339 | -3/Testing | Accompanied by 1 ally 13353 | -3/Testing | Tech Extrapolator generated special schematic: Deep Structural Scanner 13353 | -3/Testing | X0-1V1 activates XOMVISION 13477 | -3/Testing | Spotted Striker 13482 | -3/Testing | X0-1V1 sent you to a vault 13535 | -3/Testing | Tech Extrapolator generated special schematic: Energy Deflector 13551 | -3/Testing | Spotted Alpha 7 13561 | -3/Testing | Rewired PJ-EMI(L) 13566 | -3/Testing | Attached CPS modules to Alpha 7 13577 | -3/Testing | Destroyed Alpha 7 13588 | -3/Testing | Found Multirail 13590 | -3/Testing | Found Exp. Targeting Computer 13595 | -3/Testing | Master 8d assimilated hostile S-43 Plague 13597 | -3/Testing | Found Exp. Target Analyzer 13598 | -3/Testing | Lost 3 allies 13599 | -3/Testing | Found Exp. ECM Suite 13615 | -3/Testing | Garrison activated, responded to threat 13646 | -3/Testing | Scanned by Researcher 13664 | -3/Testing | Found AEGIS Remote Shield 13786 | -3/Testing | Found Gamma Bomb Array 13838 | -3/Testing | Found Imp. Potential Cannon 13839 | -3/Testing | First assault squad dispatched 13840 | -3/Testing | Found Potential Cannon 13957 | -3/Testing | Spotted PY-7ANMB9BJWL 13991 | -3/Testing | Attached CPS modules to PY-7ANMB9BJWL 13996 | -3/Testing | Allies destroyed PY-7ANMB9BJWL 14082 | -3/Testing | Found Perforator 14174 | -3/Testing | Build established: Generator-Tank 14199 | -3/Testing | Found Omega Cannon 14213 | -3/Testing | Spotted PX-EJNPR8B455 14224 | -3/Testing | Allies destroyed PX-EJNPR8B455 14231 | -3/Testing | System corruption reached 10% 14244 | -3/Testing | Discovered exit to Research (range 21) 14280 | -3/Testing | High security lockdown imminent 14310 | -3/Testing | Found SHELL Armor 14348 | -3/Testing | Entered Research 14348 | -2/Research | Accompanied by 1 ally 14348 | -2/Research | Evolved 2 slots: Utility x2 14438 | -2/Research | Chaos Wyrm evolved into Greater Chaos Wyrm 14453 | -2/Research | Attached CPS modules to Greater Chaos Wyrm 14598 | -2/Research | First assault squad dispatched 14640 | -2/Research | Build established: Scavenger-Tank 14679 | -2/Research | X0-1V1 sent you to a vault 14680 | -2/Research | X0-1V1 activates XOMVISION 14775 | -2/Research | Identified exit to Quarantine 14945 | -2/Research | X0-1V1 activates XOMVISION 15031 | -2/Research | Entered Quarantine 15031 | -2/Quarantine | Accompanied by 3 allies 15038 | -2/Quarantine | Identified exit to Access 15038 | -2/Quarantine | X0-1V1 revealed exit location to -1/Access 15091 | -2/Quarantine | X0-1V1 put everyone to sleep 15166 | -2/Quarantine | Found Alien Artifact 15166 | -2/Quarantine | Identified Core Reset Matrix 15166 | -2/Quarantine | Used Core Reset Matrix 15170 | -2/Quarantine | Detected hypermatrix surge 15170 | -2/Quarantine | Sensed 8 artifacts in vicinity 15195 | -2/Quarantine | X0-1V1 redirected Transport squads to designated parking area 15199 | -2/Quarantine | Met incapacitated Sigix Warrior 15199 | -2/Quarantine | Lockdown squad dispatched 15209 | -2/Quarantine | Acquired the access code to the Sigix quarantine chamber 15211 | -2/Quarantine | Unlocked Sigix quarantine chamber 15217 | -2/Quarantine | Found Sigix Containment Pod 15281 | -2/Quarantine | First assault squad dispatched 15290 | -2/Quarantine | Spotted Lightning 15290 | -2/Quarantine | Spotted Lightning 15296 | -2/Quarantine | Destroyed Lightning 15296 | -2/Quarantine | Destroyed Lightning 15334 | -2/Quarantine | Spotted Lightning 15336 | -2/Quarantine | Allies destroyed Lightning 15430 | -2/Quarantine | Tech Extrapolator generated special schematic: Deep Structural Scanner 15451 | -2/Quarantine | Found Subatomic Replicator 15471 | -2/Quarantine | Build established: Generator-Tank 15616 | -2/Quarantine | Spotted Fortress 15634 | -2/Quarantine | Destroyed Fortress 15643 | -2/Quarantine | High security lockdown imminent 15723 | -2/Quarantine | High security lockdown engaged 15760 | -2/Quarantine | Discovered new exit (range 6) 15760 | -2/Quarantine | Discovered new exit (range 7) 15778 | -2/Quarantine | X0-1V1 woke everyone up 15806 | -2/Quarantine | Entered Section 7 15806 | -2/Section 7 | Accompanied by 1 ally 15807 | -2/Section 7 | Detected hypermatrix surge 15807 | -2/Section 7 | Sensed 17 artifacts in vicinity 15838 | -2/Section 7 | Spotted S7 Guard 15854 | -2/Section 7 | Tech Extrapolator generated special schematic: Energy Deflector 15868 | -2/Section 7 | Allies destroyed S7 Guard 15884 | -2/Section 7 | Found Core Regenerator 15948 | -2/Section 7 | Attached CPS modules to Greater Chaos Wyrm 15978 | -2/Section 7 | Weapon slot count temporarily expanded by X0-1V1 (+2) 15999 | -2/Section 7 | Tech Extrapolator generated special schematic: Active Sensor Spoofer 16056 | -2/Section 7 | First assault squad dispatched 16085 | -2/Section 7 | Spotted Executioner 16086 | -2/Section 7 | Spotted Executioner 16115 | -2/Section 7 | Destroyed Executioner 16118 | -2/Section 7 | Destroyed Executioner 16192 | -2/Section 7 | Found Exp. Armor Integrity Analyzer 16193 | -2/Section 7 | Found Transdimensional Reconstructor 16210 | -2/Section 7 | Found Terrabomb 16212 | -2/Section 7 | Found Terrabomb 16318 | -2/Section 7 | Spotted Executioner 16318 | -2/Section 7 | Spotted Executioner 16322 | -2/Section 7 | Destroyed Executioner 16325 | -2/Section 7 | High security lockdown imminent 16325 | -2/Section 7 | Destroyed Executioner 16337 | -2/Section 7 | X0-1V1 sent you to a vault 16343 | -2/Section 7 | Found YOLO Cannon 16348 | -2/Section 7 | Spotted B-90 Cyclops 16405 | -2/Section 7 | High security lockdown engaged 16415 | -2/Section 7 | Spotted S7 Guard 16424 | -2/Section 7 | Allies destroyed S7 Guard 16469 | -2/Section 7 | Tech Extrapolator generated special schematic: Telecube 16475 | -2/Section 7 | Weapon slot count reverted to normal (-2) 16485 | -2/Section 7 | Build established: Generator-Mutant 16487 | -2/Section 7 | Destroyed 12 combat bots 16487 | -2/Section 7 | Discovered exit to Access (range 17) 16494 | -2/Section 7 | Garrison activated, responded to threat 16533 | -2/Section 7 | Destroyed 10 combat bots 16534 | -2/Section 7 | Found Core Membrane 16534 | -2/Section 7 | Installed Core Membrane, gained immunity to corruption 16541 | -2/Section 7 | Spotted Investigator 16547 | -2/Section 7 | Scanned by Researcher 16551 | -2/Section 7 | Spotted Striker 16555 | -2/Section 7 | Destroyed Investigator 16565 | -2/Section 7 | Destroyed Striker 16596 | -2/Section 7 | Destroyed 14 combat bots 16642 | -2/Section 7 | Found Microwarp Drive 16646 | -2/Section 7 | Destroyed 11 combat bots 16677 | -2/Section 7 | Spotted Striker 16677 | -2/Section 7 | Spotted Striker 16677 | -2/Section 7 | Spotted Striker 16677 | -2/Section 7 | Spotted Investigator 16677 | -2/Section 7 | Spotted Striker 16679 | -2/Section 7 | Destroyed Striker 16684 | -2/Section 7 | Destroyed Investigator 16693 | -2/Section 7 | Destroyed Striker 16709 | -2/Section 7 | Destroyed Striker 16730 | -2/Section 7 | Destroyed 25 combat bots 16756 | -2/Section 7 | Found Wyrmscale 16764 | -2/Section 7 | Sterilization system engaged 16764 | -2/Section 7 | Non-combat units ordered to evacuate 16796 | -2/Section 7 | Found Wyrmscale 16847 | -2/Section 7 | Found Adv. Particle Accelerator 16864 | -2/Section 7 | Combat units ordered to evacuate 16864 | -2/Section 7 | Found Wyrmscale 16884 | -2/Section 7 | Spotted Alpha 7 16888 | -2/Section 7 | Spotted Alpha 7 16927 | -2/Section 7 | X0-1V1 downgraded hostiles (x5) 16965 | -2/Section 7 | Destroyed 10 combat bots 17018 | -2/Section 7 | Spotted B-99 Colossus 17036 | -2/Section 7 | Destroyed B-99 Colossus 17064 | -2/Section 7 | Ambient heat levels rising (+10) 17171 | -2/Section 7 | X0-1V1 announced a LAN party 17180 | -2/Section 7 | Found LRC Energy Well 17180 | -2/Section 7 | Installed LRC Energy Well, increased energy storage capacity (+250) 17182 | -2/Section 7 | Found LRC Energy Well 17182 | -2/Section 7 | Installed LRC Energy Well, increased energy storage capacity (+250) 17214 | -2/Section 7 | Ambient heat levels rising (+10) 17226 | -2/Section 7 | Found Integrity Redistributor 17230 | -2/Section 7 | Found Integrity Redistributor 17232 | -2/Section 7 | Found Integrity Redistributor 17307 | -2/Section 7 | Destroyed Alpha 7 17364 | -2/Section 7 | Ambient heat levels rising (+10) 17390 | -2/Section 7 | Used Integrity Redistributor, redistributed integrity from core (-221) 17514 | -2/Section 7 | Ambient heat levels rising (+10) 17611 | -2/Section 7 | Found Exp. Weapon Cycler 17635 | -2/Section 7 | Found Wyrmscale 17664 | -2/Section 7 | Ambient heat levels rising (+10) 17690 | -2/Section 7 | Entered Access 17690 | -1/Access | Evolved 2 slots: Propulsion x1, Utility x1 17744 | -1/Access | X0-1V1 caused items to flee you 17912 | -1/Access | Energy Cycler disabled 17918 | -1/Access | Items stopped fleeing you 17940 | -1/Access | First assault squad dispatched 17979 | -1/Access | Build established: Generator-Tank 18051 | -1/Access | Spotted B-99 Colossus 18116 | -1/Access | High security lockdown imminent 18137 | -1/Access | Destroyed 16 combat bots 18157 | -1/Access | Intercept squad dispatched 18194 | -1/Access | Spotted Tracker 18196 | -1/Access | High security lockdown engaged 18197 | -1/Access | Spotted Tracker 18227 | -1/Access | Spotted Combat Programmer 18227 | -1/Access | Destroyed Tracker 18245 | -1/Access | Destroyed Tracker 18248 | -1/Access | Spotted Combat Programmer 18276 | -1/Access | X0-1V1 sent allied L-61 Swordsman (x2) 18285 | -1/Access | Core integrity fell below 50% 18285 | -1/Access | Garrison activated, responded to threat 18285 | -1/Access | Destroyed Combat Programmer 18290 | -1/Access | Combat Programmer assimilated allied L-61 Swordsman 18293 | -1/Access | Combat Programmer assimilated allied L-61 Swordsman 18295 | -1/Access | Destroyed Combat Programmer 18299 | -1/Access | Identified exit to Surface 18299 | -1/Access | X0-1V1 revealed exit location to -0/Surface 18326 | -1/Access | Discovered new exit (range 8) 18335 | -1/Access | Used Subatomic Replicator to replicate Core Regenerator 18344 | -1/Access | Entered Command 18382 | -1/Command | Build established: Generator-Mutant 18433 | -1/Command | X0-1V1 vaporized surrounding terrain (radius 20) 18464 | -1/Command | Used Core Regenerator, restored core integrity (+425) 18465 | -1/Command | X0-1V1 tapped a No Entrance sign 18594 | -1/Command | First assault squad dispatched 18699 | -1/Command | High security lockdown imminent 18707 | -1/Command | Build established: Scavenger-Mutant 18732 | -1/Command | Spotted M Guard 18732 | -1/Command | Spotted M Guard 18732 | -1/Command | Spotted Combat Programmer 18733 | -1/Command | Spotted Combat Programmer 18749 | -1/Command | Destroyed M Guard 18779 | -1/Command | High security lockdown engaged 18793 | -1/Command | Destroyed Combat Programmer 18801 | -1/Command | Destroyed Combat Programmer 18833 | -1/Command | Met MAIN.C 18836 | -1/Command | 0b10 Conduit disabled 18865 | -1/Command | Used Integrity Redistributor, redistributed integrity from core (-429) 18882 | -1/Command | Destroyed MAIN.C Shell 18884 | -1/Command | MAIN.C activated Command garrisons 18890 | -1/Command | Emitted hypermatrix ping 18895 | -1/Command | Assembled emerged from beneath the floor 18943 | -1/Command | Used Core Regenerator, restored core integrity (+425) 18974 | -1/Command | Lost 7 allies 19040 | -1/Command | Core integrity fell below 20% 19048 | -1/Command | Used Integrity Redistributor, redistributed integrity to core (+321) 19063 | -1/Command | X0-1V1 turns hostiles against one another 19081 | -1/Command | Destroyed by S-43 Plague with Heavy Machine Gun Last Messages --------------- 19063_ X0-1V1 tampers with S-43 Plague IFF filter. 19066_ S-43 Plague destroyed. 19067_ Acquired 30 matter. 19068_ Acquired Xenon Bombardment Thruster. 19068_ S-43 Plague destroyed. 19069_ K-01 Serf collects debris. 19069_ Dropped Exp. Armored Exoskeleton. 19070_ S-43 Plague destroyed. 19070_ Dropped Hds. Centrium Leg. 19071_ Acquired Xenon Bombardment Thruster. 19071_ Xenon Bombardment Thruster destroyed. 19071_ Knocked back. 19072_ K-01 Serf collects debris. 19072_ S-43 Plague destroyed. 19075_ K-01 Serf collects debris. 19080_ Xenon Bombardment Thruster destroyed. 19080_ X0-1V1 uses you as a vessel of destruction. 19080_ Slug penetrates S-43 Plague. 19080_ S-43 Plague destroyed. 19081_ X0-1V1 cackles wildly! Map ----- +----------------------------------------------------+ | ?????????????????????????????????????????????????? | | ?????????????????????????????????????????????????? | | ?????????????????????????????????????????????????? | | ?????????????????????????????????????????????????? | | ?????????????????????????????????????????????????? | | ?????????????????????????????????????????????????? | | ?????????????????????????????????????????????????? | | ?????????????????????????????????????????????????? | | ???????????????????????# #?????????????????????? | | ???????????????????????# #?????????????????????? | | ???????????????????????# #?????????????????????? | | ??????????????????????? #?????????????????????? | | ??????????????????????? #?????????????????????? | | ??????????????????????? #???H?????????????????? | | ???????????????????????# #?????????????????????? | | ???????????????????????# #?????????????????????? | | ???????????????????????#k #?????????????????????? | | ???????????????????????# #?????????????????????? | | ?????????????????????### ###???????????????????? | | ?????????????????????# #??????????T ??????? | | ?????????????????????# #????????? ??????? | | ?????????????????????# "" #????????? ??????? | | ?????????????????????# "T #?????????# #?????? | | ???????????? ????????# #?????????# #?????? | | ???????????? ?????# #?????????# #?????? | | ?????????????? = ????# @ #?????????# #?????? | | ???????????????#+########/#######??????# #?????? | | ???????????????# #??????# #?????? | | ???????????????# #??????# #?????? | | ???????????????# =! #??????# #?????? | | ???????????????# "" =! ######## #?????? | | ???????????????# """" # ! #?????? | | ???????????????# """" # #?????? | | ???????????????# ""s # ####??? | | ???????????????# # "" #??? | | ???????????????# # """#??? | | ???????????????#####+###/###p##### T"#??? | | ???????????????????# ??#s#?? ???# """???? | | ???????????????????#???# #?? ???+ ""????? | | ???????????????????????# ##? ???# #?????? | | ???????????????????????# +? ??# ! ####### | | ???????????????????????# ##?? ??# % | | ?????????????? ????????# #??? ??# ] | | ?????????????? ??????# #???###?# ! | | ??????????????? "????#=#???????# ## | | ???????????? """"??#%#########*%%= #? | | ??????????# """" #*=[ % #? | | ??????????# "" +%% #? | | ??????????# #==== #? | | ??????????# ?# % ########+######## #? | +----------------------------------------------------+ Best States ------------- Heat Dissipation 128 Energy Generation 99 Energy Capacity 2450 Matter Stores 1000 Matter Capacity 1000 Sight Range 28 Terrain Scan Density 10 Jamming Range 14 Additional Mass Support 6 Corruption Containment 20 Armor Coverage 1050 Resistance: KI 29 Resistance: TH 10 Resistance: EM 19 Utility Shielding 90 Weapon Cycling 30 Phase Shifting 5 Evasion (%) 75 Targeting Accuracy 12 Launcher Accuracy 30 Recoil Reduction 3 Particle Charging 50 Offensive Hacking 12 Authchip Count 3 Trap Extractor Capacity 4 Item Schematics ----------------- Mak. Power Source | -2/Quarantine | Extrapolated Multireflex Exoskeleton | -2/Quarantine | Extrapolated Mak. Coolant Network | -2/Quarantine | Extrapolated Deep Structural Scanner | -2/Quarantine | Extrapolated Mak. Targeting Computer | -2/Quarantine | Extrapolated Mak. Transmission Jammer | -2/Quarantine | Extrapolated Mak. Weapon Shielding | -2/Quarantine | Extrapolated Centrium Heavy Armor Plating | -2/Quarantine | Archive Adv. Quantum Shading Machine | -2/Quarantine | Archive Mak. Propulsion Shielding | -2/Quarantine | Extrapolated Mak. Thermal Plating | -2/Quarantine | Extrapolated Energy Deflector | -2/Section 7 | Extrapolated Mak. ECM Suite | -2/Section 7 | Extrapolated Active Sensor Spoofer | -2/Section 7 | Extrapolated Mak. Hacking Suite | -2/Section 7 | Extrapolated Mak. System Shield | -2/Section 7 | Extrapolated Mak. System Restoration Module | -2/Section 7 | Extrapolated Mapping Drone Bay | -2/Section 7 | Extrapolated Mak. Heavy Armor Plating | -2/Section 7 | Extrapolated Telecube | -2/Section 7 | Extrapolated Multitool | -2/Section 7 | Extrapolated Hvy. Beamcaster | -2/Section 7 | Extrapolated Robot Schematics ------------------ None Fabricated ------------ Nothing Repaired ---------- Nothing Studied --------- Centrium Leg | -2/Section 7 | Hacked Alien Tech Used ----------------- Core Reset Matrix Core Membrane LRC Energy Well Integrity Redistributor Microwarp Drive Subatomic Replicator Core Regenerator Achievements -------------- Greater Chaos Statue Heist Challenges ------------ None Game ------ Seed ReinforcedProjectionSpoofer Manual? 0 Play Time 03:58:43 Cumulative 1024.2 hours Start 2026.08.27 @ 00:46:21 End 2026.08.30 @ 23:38:11 Sessions 18 Manual Loads 0 Difficulty Rogue Special Mode None Game No. 1148 Rogue 1148 Adventurer 0 Explorer 0 Win Type - Total 46 Types 22/1/10/3/2/1/3/2/1/1 Lore% 97 Gallery% 97 Achievement% 93 Wizard Run 0 Options --------- Layout 0 ASCII 0 Keyboard 0 Movement Mouse Keybinds 0 Fullscreen 1 Font 24/X11 Map View 76x50 Zoom Use 0% Tactical HUD 1 Map Filters NONE Filters NONE Steam 1 RUN: 83a4116f-b1f3-474c-a5f9-2c514b32db65